bitfinex/quotes_ETHUSD_20230703
["timestamp","ask_amount","ask_price","bid_price","bid_amount"]
[1688417377571,5.862,1960.1,1960.0,0.1]
[1688417377741,30.88842282,1960.1,1960.0,0.1]
[1688417377940,30.89242282,1960.1,1960.0,0.1]
[1688417378172,30.91043568,1960.1,1960.0,0.1]
[1688417379859,30.92675749,1960.1,1960.0,0.1]
[1688417380286,24.55066283,1960.1,1960.0,0.1]
[1688417380496,22.79408749,1960.1,1960.0,0.1]
[1688417380690,23.27408749,1960.1,1960.0,0.1]
[1688417381399,22.99404647,1960.1,1959.7,0.1]
[1688417381698,3.06,1959.8,1959.7,0.1]
[1688417381901,18.37518816,1959.8,1959.7,0.1]
[1688417382202,25.74118816,1959.8,1959.7,0.1]
[1688417385559,20.37918816,1959.8,1959.7,0.1]
[1688417388199,20.37918816,1959.8,1959.7,1.398]
[1688417388409,10.72534816,1959.8,1959.7,1.398]
[1688417388557,2.56278816,1959.8,1959.7,2.048088]
[1688417388900,7.66534816,1959.8,1959.7,2.048088]
[1688417389111,12.76790816,1959.8,1959.7,1.398]
[1688417389405,7.66534816,1959.8,1959.7,1.398]
[1688417389610,7.66534816,1959.8,1959.7,6.50082]
[1688417389819,7.66534816,1959.8,1959.7,1.398]
[1688417390463,0.004,1959.8,1959.7,11.60364]
[1688417390664,0.93271847,1960.1,1959.7,15.700364]
[1688417390665,0.004,1959.9,1959.7,15.700364]
[1688417390893,2.55878816,1959.9,1959.8,1.298]
[1688417391104,7.66508816,1959.9,1959.8,6.40056]
[1688417391305,15.31853816,1959.9,1959.7,0.1]
[1688417391603,15.82790816,1959.8,1959.7,0.1]
[1688417391759,18.37918816,1959.8,1959.7,0.1]
[1688417394067,10.72534816,1959.8,1959.7,1.398]
[1688417394493,15.82790816,1959.8,1959.7,1.398]
[1688417395924,18.37918816,1959.8,1959.7,1.398]
[1688417396242,2.56278816,1959.8,1959.7,6.50082]
[1688417396535,2.55878816,1959.8,1959.7,6.50082]
[1688417396834,2.56278816,1959.8,1959.7,1.398]
[1688417397019,7.66534816,1959.8,1959.7,1.398]
[1688417397223,7.66534816,1959.8,1959.7,6.50082]
[1688417397949,7.66534816,1959.8,1959.7,1.398]
[1688417398115,7.66534816,1959.8,1959.7,6.50082]
[1688417399746,7.66534816,1959.8,1959.7,1.398]
[1688417400434,12.00212798,1959.8,1959.7,1.398]
[1688417400619,30.10158364,1959.8,1959.7,0.1]
[1688417401241,30.11790545,1959.8,1959.7,0.1]
[1688417402556,30.11790545,1959.8,1959.4,0.1]
[1688417402851,15.31713816,1959.5,1959.4,0.1]
[1688417403205,15.32113816,1959.5,1959.4,0.1]
[1688417404198,16.12380652,1959.5,1959.4,0.1]
[1688417410058,15.32113816,1959.5,1959.4,0.1]
[1688417410214,7.66612816,1959.5,1959.4,1.398]
[1688417410552,12.76946816,1959.5,1959.4,1.398]
[1688417413521,0.004,1959.5,1959.4,1.398]
[1688417413727,0.41643254,1959.9,1959.4,1.398]
[1688417413728,0.004,1959.6,1959.4,14.157]
[1688417413912,5.51883254,1959.9,1959.4,10.3072]
[1688417413913,2.55878816,1959.5,1959.4,10.3072]
[1688417414410,7.66212816,1959.5,1959.4,0.1]
[1688417414612,7.66612816,1959.5,1959.4,6.5016]
[1688417415256,2.56278816,1959.5,1959.4,6.5016]
[1688417415424,7.66612816,1959.5,1959.4,1.398]
[1688417415931,16.59807298,1959.5,1959.4,0.1]
[1688417417346,21.96007298,1959.5,1959.4,0.1]
[1688417417671,25.02007298,1959.5,1959.4,0.1]
[1688417418068,5.362,1959.3,1958.7,0.1]
[1688417418251,3.06,1959.0,1958.7,2.0887]
[1688417418574,18.38103816,1958.9,1958.7,0.1]
[1688417418883,18.38503816,1958.9,1958.7,0.1]
[1688417419175,15.83258816,1958.9,1958.7,1.398]
[1688417419337,15.83258816,1958.9,1958.7,6.50332]
[1688417419538,10.72768816,1958.9,1958.7,11.60864]
[1688417419965,10.72768816,1958.9,1958.7,6.50332]
[1688417420509,10.72768816,1958.9,1958.7,5.20532]
[1688417420632,10.72768816,1958.9,1958.8,1.4520252]
[1688417421028,10.72768816,1958.9,1958.8,6.5571852]
[1688417421029,2.56278816,1958.9,1958.8,6.5571852]
[1688417421233,2.55878816,1958.9,1958.8,11.6623452]
[1688417423169,0.004,1959.3,1958.8,16.94242172]
[1688417423351,0.004,1959.3,1958.8,22.04758172]
[1688417423551,5.10349,1959.5,1958.8,22.04758172]
[1688417423726,5.10749,1959.5,1958.8,22.04758172]
[1688417423924,0.004,1959.4,1958.8,23.68998172]
[1688417424123,0.004,1959.4,1959.3,11.50572]
[1688417424737,2.56278816,1959.4,1959.3,11.50572]
[1688417424973,2.56278816,1959.4,1959.3,14.05765]
[1688417425668,2.55878816,1959.4,1959.3,14.05765]
[1688417425871,0.004,1959.5,1959.3,14.05765]
[1688417426028,0.004,1959.6,1959.5,12.75835]
[1688417426229,0.004,1959.8,1959.5,14.05635]
[1688417426559,0.004,1959.8,1959.5,10.20668]
[1688417426560,2.55878816,1959.7,1959.5,10.20668]
[1688417426935,0.004,1959.6,1959.5,10.20668]
[1688417427171,2.56278816,1959.6,1959.5,10.20668]
[1688417427471,2.55878816,1959.6,1959.5,10.20668]
[1688417428391,2.55878816,1959.6,1959.5,11.6231005]
[1688417430398,2.55878816,1959.6,1959.5,12.9161005]
[1688417432086,2.55878816,1959.6,1959.5,15.4677705]
[1688417432596,2.55878816,1959.6,1959.5,14.05135]
[1688417436425,0.004,1959.8,1959.5,14.05135]
[1688417436590,2.55878816,1959.7,1959.5,12.75835]
[1688417441532,0.004,1959.8,1959.6,1.298]
[1688417441824,0.004,1960.0,1959.7,14.05005]
[1688417441987,2.55878816,1959.9,1959.8,14.0544]
[1688417442327,2.56278816,1959.9,1959.8,14.0544]
[1688417442494,2.55878816,1959.9,1959.8,14.0544]
[1688417443820,0.004,1960.0,1959.8,14.0544]
[1688417444033,0.004,1960.1,1959.9,1.293]
[1688417444250,2.56278816,1960.1,1960.0,10.20408]
[1688417444448,2.55878816,1960.1,1960.0,10.20408]
[1688417445362,0.004,1960.2,1960.0,12.7551]
[1688417445564,2.56278816,1960.2,1960.0,12.7551]
[1688417445764,2.56278816,1960.2,1960.0,10.20408]
[1688417446063,2.56278816,1960.2,1960.0,14.0481]
[1688417446270,0.004,1960.2,1960.0,14.0481]
[1688417446563,0.004,1960.2,1960.0,15.45291]
[1688417448220,0.004,1960.3,1960.0,15.45291]
[1688417448447,2.56278816,1960.3,1960.1,6.39957]
[1688417448668,0.004,1960.3,1960.2,14.0518]
[1688417448871,0.004,1960.4,1960.2,10.20304]
[1688417449031,2.56278816,1960.4,1960.2,10.20304]
[1688417449220,0.004,1960.4,1960.2,10.20304]
[1688417449419,0.004,1960.4,1960.2,11.50104]
[1688417450065,0.004,1960.4,1960.3,1.29873672]
[1688417450254,0.004,1960.4,1960.3,11.49452]
[1688417450453,5.10474,1960.5,1960.4,0.0058164]
[1688417450702,0.004,1960.4,1960.3,11.49452]
[1688417451223,0.004,1960.4,1960.3,14.04515]
[1688417451375,2.06278816,1960.5,1960.3,15.59907207]
[1688417451582,2.06278816,1960.5,1960.4,1.298]
[1688417451774,2.06278816,1960.5,1960.4,6.39899]
[1688417452209,2.06478816,1960.5,1960.4,6.39899]
[1688417453908,1.86478816,1960.5,1960.4,6.39899]
[1688417454994,1.86478816,1960.5,1960.4,11.49998]
[1688417455198,1.86478816,1960.5,1960.4,13.05954439]
[1688417455421,1.86478816,1960.5,1960.4,13.067266]
[1688417455740,1.86478816,1960.5,1960.4,13.05954439]
[1688417456910,1.86478816,1960.5,1960.4,13.06516082]
[1688417457114,1.86478816,1960.5,1960.4,13.05954439]
[1688417458946,1.86278816,1960.5,1960.4,13.05954439]
[1688417460946,1.86478816,1960.5,1960.4,13.05954439]
[1688417461836,1.86478816,1960.5,1960.4,15.61003439]
[1688417462041,1.86478816,1960.5,1960.4,13.05954439]
[1688417462200,1.86278816,1960.5,1960.4,13.05954439]
[1688417462818,1.86278816,1960.5,1960.4,10.20198]
[1688417463001,1.86478816,1960.5,1960.4,10.20198]
[1688417463336,1.86278816,1960.5,1960.4,10.20198]
[1688417463705,1.86478816,1960.5,1960.4,10.20198]
[1688417464936,1.86478816,1960.5,1960.4,11.49498]
[1688417466027,1.86478816,1960.5,1960.4,10.20198]
[1688417474891,6.96551816,1960.5,1960.1,1.9516]
[1688417475182,7.66204698,1960.5,1960.1,5.10152]
[1688417475342,0.002,1960.4,1960.1,5.10152]
[1688417475539,2.56078816,1960.4,1960.1,5.10152]
[1688417475778,0.002,1960.3,1960.1,10.2033]
[1688417479988,2.55878816,1960.4,1960.1,12.75419]
[1688417479989,2.56078816,1960.4,1960.1,12.75419]
[1688417480140,2.56078816,1960.4,1960.1,14.492189]
[1688417480346,0.002,1960.3,1960.1,14.492189]
[1688417480560,0.002,1960.3,1960.1,11.941299]
[1688417480844,7.66206816,1960.3,1960.0,7.17668]
[1688417481045,7.66207816,1960.3,1959.9,14.84132]
[1688417481277,2.55878816,1960.2,1959.9,13.20422]
[1688417482585,2.55878816,1960.2,1959.9,15.75537]
[1688417488784,2.55878816,1960.2,1959.9,12.75537]
[1688417488983,13.01992698,1960.2,1959.7,5.10264]
[1688417489287,5.10384,1960.1,1959.8,5.10246]
[1688417489497,2.55878816,1960.0,1959.8,5.10246]
[1688417489659,7.66283816,1960.0,1959.8,5.10246]
[1688417489846,10.2066,1959.9,1959.6,5.5140751]
[1688417490053,7.66136816,1959.8,1959.5,7.17505]
[1688417490291,3.83735498,1959.8,1959.2,1.293]
[1688417490491,3.83735498,1959.8,1959.1,4.21448184]
[1688417490492,0.002,1959.7,1959.1,4.21448184]
[1688417490660,7.66193816,1959.6,1959.2,5.10399]
[1688417490866,2.55878816,1959.6,1959.2,10.20811]
[1688417491062,2.56078816,1959.6,1959.2,10.20811]
[1688417491361,0.0071083,1959.5,1959.2,14.44494185]
[1688417491569,2.55878816,1959.5,1959.2,14.44494185]
[1688417492896,0.01123837,1959.4,1959.2,14.44494185]
[1688417493658,2.57002653,1959.4,1959.2,14.44494185]
[1688417494285,2.57002653,1959.4,1959.2,1.68477185]
[1688417494490,2.55878816,1959.4,1959.2,7.65618]
[1688417494701,0.00759805,1959.3,1959.2,12.7603]
[1688417495066,2.55878816,1959.4,1959.2,12.7603]
[1688417496402,0.00911623,1959.3,1959.2,12.7603]
[1688417496614,0.00911623,1959.3,1959.2,15.96629885]
[1688417497172,0.01111623,1959.5,1959.2,15.96629885]
[1688417497479,10.24560351,1959.7,1959.4,10.2072]
[1688417497712,2.55878816,1959.6,1959.4,10.2072]
[1688417498016,2.56078816,1959.6,1959.3,1.298]
[1688417498198,2.56078816,1959.6,1959.4,10.2072]
[1688417500895,0.00576737,1959.5,1959.4,10.2072]
[1688417501322,2.56078816,1959.6,1959.4,10.2072]
[1688417501920,0.002,1959.7,1959.5,1.298]
[1688417502116,0.002,1959.7,1959.6,10.20616]
[1688417502117,2.56078816,1959.7,1959.6,10.20616]
[1688417502318,2.55878816,1959.7,1959.6,10.20616]
[1688417503137,2.56078816,1959.7,1959.6,10.20616]
[1688417503330,0.002,1959.8,1959.6,15.455277]
[1688417503828,0.002,1959.9,1959.6,15.455277]
[1688417503982,2.56078816,1959.9,1959.6,15.455277]
[1688417504184,2.56078816,1959.9,1959.8,10.20512]
[1688417504793,0.002,1959.9,1959.8,10.20512]
[1688417504996,0.002,1960.0,1959.8,12.7564]
[1688417505192,2.56078816,1960.0,1959.8,12.7564]
[1688417505420,0.002,1959.9,1959.8,12.7564]
[1688417505737,0.002,1959.9,1959.8,11.84530277]
[1688417506032,0.002,1959.9,1959.8,15.68858277]
[1688417507065,0.002,1959.9,1959.8,11.84530277]
[1688417513912,0.002,1959.9,1959.8,14.39658277]
[1688417514507,2.55878816,1960.0,1959.8,14.39658277]
[1688417514709,2.55878816,1960.0,1959.9,11.64425828]
[1688417514916,2.55878816,1960.0,1959.9,14.19540828]
[1688417515503,0.002,1960.1,1959.9,14.19540828]
[1688417515713,2.56078816,1960.1,1959.9,14.19540828]
[1688417516099,2.55878816,1960.1,1959.9,14.19540828]
[1688417516329,1.7332,1960.3,1960.0,1.41954083]
[1688417516647,2.55878816,1960.3,1960.1,10.20356]
[1688417517435,2.56078816,1960.3,1960.1,10.20356]
[1688417519141,0.002,1960.3,1960.1,10.20356]
[1688417519447,0.002,1960.4,1960.1,10.20356]
[1688417519613,2.56078816,1960.4,1960.1,11.62096608]
[1688417519820,7.66182816,1960.4,1960.1,11.62096608]
[1688417520018,7.66182816,1960.4,1960.1,10.20356]
[1688417523523,5.10104,1960.4,1960.1,10.20356]
[1688417526660,5.10102,1960.4,1960.1,12.75445]
[1688417530557,10.20204,1960.4,1960.1,10.20356]
[1688417533081,5.10102,1960.4,1960.1,10.20356]
[1688417533250,5.10102,1960.4,1960.1,11.62096908]
[1688417536360,5.00102,1960.4,1960.1,11.62096908]
[1688417536529,5.10089,1960.5,1960.1,14.17185908]
[1688417536739,10.20173,1960.5,1960.1,14.17185908]
[1688417538647,10.99604466,1960.5,1960.1,14.17185908]
[1688417539065,10.99604466,1960.5,1960.2,1.41718591]
[1688417539267,10.99604466,1960.5,1960.3,5.10126]
[1688417539466,5.89515466,1960.5,1960.3,10.20252]
[1688417539676,5.10084,1960.5,1960.3,5.10126]
[1688417541284,5.10084,1960.5,1960.3,10.20252]
[1688417542680,13.74702087,1960.6,1960.3,10.20252]
[1688417542884,5.89505466,1960.5,1960.3,10.20252]
[1688417545378,5.89505466,1960.5,1960.3,5.10126]
[1688417545781,10.99579466,1960.5,1960.3,5.10126]
[1688417546704,12.05488087,1960.5,1960.3,5.10126]
[1688417547709,5.89505466,1960.5,1960.3,10.20252]
[1688417548291,5.89505466,1960.5,1960.3,5.10126]
[1688417548802,0.79431466,1960.4,1960.3,5.10126]
[1688417549003,5.89505466,1960.5,1960.3,5.10126]
[1688417549304,0.79431466,1960.5,1960.3,13.773405]
[1688417553875,0.79431466,1960.6,1960.3,13.773405]
[1688417554692,0.79431466,1960.5,1960.3,13.773405]
[1688417555476,0.79431466,1960.5,1960.3,5.10126]
[1688417555873,5.89506466,1960.5,1960.2,5.10136]
[1688417556585,5.89506466,1960.5,1960.2,10.20288]
[1688417558309,3.35310282,1960.4,1960.1,5.10159]
[1688417558509,3.35310282,1960.4,1960.1,10.20337]
[1688417558897,3.35310282,1960.4,1960.1,5.10159]
[1688417559284,3.35310282,1960.4,1960.1,10.20337]
[1688417561720,4.41218903,1960.4,1960.1,10.20337]
[1688417561894,3.35310282,1960.4,1960.1,10.20337]
[1688417562920,4.41218903,1960.4,1960.1,10.20337]
[1688417563832,4.41218903,1960.4,1960.1,12.75426]
[1688417564042,3.35310282,1960.4,1960.1,12.75426]
[1688417569440,3.35310282,1960.4,1960.1,14.284786]
[1688417574142,2.55878816,1960.4,1960.1,14.284786]
[1688417574702,0.79431466,1960.5,1960.1,14.284786]
[1688417580345,0.79431466,1960.5,1960.1,19.646786]
[1688417582267,0.79431466,1960.5,1960.1,20.944786]
[1688417582436,0.79431466,1960.5,1960.3,10.20252]
[1688417585555,0.79431466,1960.5,1960.3,12.75315]
[1688417585855,0.79431466,1960.7,1960.3,14.04515]
[1688417586072,0.79431466,1960.7,1960.5,10.20146]
[1688417587075,0.69431466,1960.7,1960.5,10.20146]
[1688417587369,0.69431466,1960.7,1960.5,14.156312]
[1688417588182,1.05908621,1960.9,1960.5,14.156312]
[1688417588325,6.15888621,1960.9,1960.5,14.156312]
[1688417590536,5.0998,1960.9,1960.5,14.156312]
[1688417591975,6.15888621,1960.9,1960.5,14.156312]
[1688417592277,5.0998,1960.9,1960.6,1.4156312]
[1688417592432,5.0998,1960.9,1960.7,5.10021]
[1688417592628,9.61364621,1961.0,1960.7,5.10021]
[1688417592932,5.09979,1960.9,1960.7,5.10021]
[1688417594971,1.6359,1961.0,1960.7,5.10021]
[1688417595176,13.19997621,1961.2,1960.8,0.510021]
[1688417595401,13.19997621,1961.2,1960.9,5.09964]
[1688417595402,2.55878816,1961.1,1960.9,5.09964]
[1688417595784,5.09927,1961.1,1960.9,5.09964]
[1688417596015,5.89461107,1961.1,1960.9,10.19933]
[1688417596520,5.09927,1961.1,1960.9,10.19933]
[1688417597774,12.69838107,1961.2,1960.9,11.5252611]
[1688417597974,7.59925107,1961.2,1960.9,11.5252611]
[1688417598710,2.50034107,1961.2,1960.9,14.0751011]
[1688417598926,1.705,1961.2,1960.9,14.0751011]
[1688417599414,5.09895,1961.2,1960.9,14.0751011]
[1688417601903,12.65434107,1961.3,1960.9,14.0751011]
[1688417602601,11.859,1961.3,1960.9,14.0751011]
[1688417612038,11.859,1961.3,1960.9,12.74917]
[1688417612238,11.859,1961.3,1960.9,5.09964]
[1688417612239,2.55878816,1961.2,1960.9,5.09964]
[1688417612466,5.09917,1961.1,1960.9,5.09964]
[1688417613623,5.09917,1961.1,1960.9,10.19933]
[1688417615155,12.75692816,1961.2,1960.9,10.19933]
[1688417618074,7.65783816,1961.2,1960.9,10.19933]
[1688417618243,7.65783816,1961.2,1960.9,12.74917]
[1688417625411,7.65783816,1961.2,1960.9,14.024087]
[1688417627199,7.65783816,1961.2,1960.9,12.74917]
[1688417628614,8.45317923,1961.2,1960.9,12.74917]
[1688417629176,7.65783816,1961.2,1960.9,12.74917]
[1688417629372,8.45317923,1961.2,1960.9,12.74917]
[1688417630104,7.65783816,1961.2,1960.9,12.74917]
[1688417630410,12.75696816,1961.2,1960.9,12.74917]
[1688417630612,13.55230923,1961.2,1960.9,12.74917]
[1688417634737,13.55230923,1961.2,1960.9,10.19933]
[1688417635111,14.61139544,1961.2,1960.9,10.19933]
[1688417635315,13.55230923,1961.2,1960.9,10.19933]
[1688417635699,14.61139544,1961.2,1960.9,10.19933]
[1688417636095,0.79534107,1961.1,1960.9,10.19933]
[1688417636399,0.79534107,1961.1,1960.9,10.97452535]
[1688417640567,0.79534107,1961.0,1960.9,10.97452535]
[1688417643374,0.79534107,1961.0,1960.9,10.19933]
[1688417645064,3.29534107,1961.0,1960.9,10.19933]
[1688417645466,21.49348993,1961.0,1960.5,0.40696251]
[1688417645770,0.79737244,1960.7,1960.4,5.10085]
[1688417646073,0.79737244,1960.7,1960.1,0.53078184]
[1688417646074,2.55878816,1960.6,1960.1,0.53078184]
[1688417646374,0.0155288,1960.4,1960.0,5.63265184]
[1688417646689,0.0155288,1960.4,1960.0,10.20391]
[1688417646690,7.67539696,1960.4,1960.0,10.20391]
[1688417647405,7.67539696,1960.4,1960.0,5.10187]
[1688417647605,15.35209966,1960.4,1959.9,5.10215]
[1688417647765,17.90258966,1960.4,1959.8,10.59180233]
[1688417648067,17.90258966,1960.4,1959.9,5.10223]
[1688417648885,15.35209966,1960.4,1959.9,10.20453]
[1688417649088,15.35209966,1960.4,1959.9,5.10223]
[1688417649674,17.90258966,1960.4,1959.9,10.20453]
[1688417650077,17.90258966,1960.4,1959.9,5.10223]
[1688417651482,16.60458966,1960.4,1959.9,5.10223]
[1688417652267,2.55878816,1960.3,1959.9,5.10223]
[1688417652467,5.1170988,1960.2,1959.7,2.50757695]
[1688417652670,3.85678816,1960.1,1959.4,1.5988]
[1688417652989,12.7558,1959.9,1959.3,12.31077]
[1688417653183,2.58255491,1959.8,1959.3,12.31077]
[1688417653506,15.33917491,1959.8,1959.3,14.58710646]
[1688417653757,15.31540816,1959.8,1959.3,13.17315128]
[1688417653864,0.00944045,1959.7,1959.3,0.41385128]
[1688417654068,10.20639,1959.6,1959.2,5.10395]
[1688417654268,0.02513561,1959.5,1959.2,5.10395]
[1688417654500,5.12855561,1959.5,1959.2,10.20807]
[1688417655279,5.12855561,1959.5,1959.2,5.10395]
[1688417655494,0.02513561,1959.5,1959.2,13.734441]
[1688417655807,0.02513561,1959.6,1959.2,13.734441]
[1688417656515,5.12821561,1959.6,1959.2,13.734441]
[1688417659180,7.62821561,1959.6,1959.2,13.734441]
[1688417663953,2.52513561,1959.6,1959.3,1.298]
[1688417664235,0.02513561,1959.5,1959.4,19.419]
[1688417664437,0.02513561,1959.5,1959.4,21.616086]
[1688417668047,2.5,1959.6,1959.4,21.616086]
[1688417668250,2.5,1959.6,1959.5,6.66]
[1688417668447,2.5,1959.6,1959.5,19.41835]
[1688417675580,2.5,1959.6,1959.5,18.12035]
[1688417675757,2.5,1959.6,1959.5,20.5370736]
[1688417675952,2.5,1959.6,1959.5,21.8290736]
[1688417677027,2.5,1959.6,1959.5,20.5370736]
[1688417680237,2.5,1959.6,1959.5,15.1750736]
[1688417680404,2.5,1959.6,1959.5,12.75835]
[1688417683247,2.51011144,1959.6,1959.5,12.75835]
[1688417684696,2.5,1959.6,1959.5,12.75835]
[1688417684898,2.5,1959.6,1959.5,14.05635]
[1688417685134,2.5,1959.6,1959.5,16.253365]
[1688417687896,2.5,1959.6,1959.5,16.203365]
[1688417688306,2.5,1959.6,1959.5,21.565365]
[1688417689134,2.5,1959.6,1959.5,22.045365]
[1688417690409,2.5,1959.6,1959.5,25.045365]
[1688417691105,2.5,1959.6,1959.5,25.31310471]
[1688417691302,2.5,1959.6,1959.5,25.57614684]
[1688417691810,2.5,1959.6,1959.5,12.86779684]
[1688417692207,2.5,1959.6,1959.5,25.62614684]
[1688417692606,2.5246906,1959.6,1959.5,25.62614684]
[1688417693143,2.5246906,1959.6,1959.5,25.14614684]
[1688417693507,2.5,1959.6,1959.5,25.14614684]
[1688417695048,2.5246906,1959.6,1959.5,25.14614684]
[1688417695648,2.5,1959.6,1959.5,25.94436602]
[1688417695807,2.5,1959.6,1959.5,25.41358418]
[1688417696203,2.5,1959.6,1959.5,31.0407537]
[1688417696543,2.5,1959.6,1959.5,31.57579687]
[1688417696745,2.5,1959.6,1959.5,31.0407537]
[1688417697535,2.5,1959.6,1959.5,31.44393964]
[1688417697745,2.5,1959.6,1959.5,34.0027278]
[1688417697920,2.5,1959.6,1959.5,35.06702004]
[1688417698124,1.7586,1960.2,1959.5,34.0027278]
[1688417698443,1.7586,1960.2,1959.9,6.659]
[1688417698621,1.7586,1960.2,1960.0,12.7551]
[1688417699244,10.20217,1960.4,1960.0,12.7551]
[1688417699456,5.10104,1960.4,1960.0,12.7551]
[1688417700241,10.20217,1960.4,1960.0,12.7551]
[1688417700444,12.76095816,1960.4,1960.0,10.20408]
[1688417702033,12.76095816,1960.4,1960.0,12.7551]
[1688417702686,5.10104,1960.4,1960.0,12.7551]
[1688417702886,9.46721244,1960.5,1960.0,12.7551]
[1688417703087,12.0260006,1960.5,1960.0,12.7551]
[1688417703475,12.0260006,1960.5,1960.0,14.0531]
[1688417703790,9.46721244,1960.5,1960.0,21.611722]
[1688417703994,5.10101,1960.4,1960.0,21.611722]
[1688417704988,9.46721244,1960.5,1960.0,21.611722]
[1688417705188,8.66984,1960.5,1960.0,20.313722]
[1688417705595,13.77069,1960.5,1960.0,20.313722]
[1688417706192,3.569,1960.5,1960.1,7.3933722]
[1688417706443,1.6599,1960.5,1960.2,18.11565]
[1688417707709,0.79737244,1960.8,1960.2,23.21717]
[1688417707909,2.46517244,1960.8,1960.2,23.21717]
[1688417708067,1.6678,1960.8,1960.5,20.66406]
[1688417708269,0.79737244,1961.0,1960.7,12.7504]
[1688417708502,2.46517244,1961.0,1960.7,12.7504]
[1688417708872,2.46517244,1961.0,1960.7,18.1124]
[1688417709273,0.79737244,1961.1,1960.7,18.1124]
[1688417709470,0.79737244,1961.1,1960.9,12.74922]
[1688417710218,1.6678,1961.2,1960.9,12.74922]
[1688417710518,2.5,1961.0,1960.9,12.74922]
[1688417711012,2.5,1961.0,1960.9,18.11122]
[1688417711986,9.55749244,1961.4,1960.9,18.11122]
[1688417712315,6.83692,1961.4,1960.9,18.62554517]
[1688417712817,1.7385,1961.4,1960.9,18.62554517]
[1688417714496,6.83694,1961.4,1960.9,18.62554517]
[1688417717517,7.33694,1961.4,1960.9,18.62554517]
[1688417718516,16.29216816,1961.4,1960.9,12.74922]
[1688417718748,16.29216816,1961.4,1960.9,10.19938]
[1688417718749,8.95556816,1961.3,1960.9,10.19938]
[1688417719053,15.30566816,1961.3,1960.6,5.10035]
[1688417719253,18.36566816,1961.3,1960.5,8.10062]
[1688417719418,3.06,1961.2,1960.5,8.10062]
[1688417719619,6.39746,1961.0,1960.5,13.2012]
[1688417719943,2.55878816,1960.9,1960.5,13.2012]
[1688417720536,2.55878816,1960.9,1960.5,15.75156]
[1688417722949,7.65847816,1960.9,1960.5,5.10058]
[1688417723154,5.86589782,1960.8,1960.5,5.10058]
[1688417723353,8.42468598,1960.8,1960.5,5.10058]
[1688417723742,8.92468598,1960.8,1960.5,5.10058]
[1688417724342,8.92468598,1960.8,1960.5,10.20131]
[1688417724649,8.92468598,1960.8,1960.5,5.10058]
[1688417725042,8.92468598,1960.8,1960.5,10.20131]
[1688417725259,8.92468598,1960.8,1960.5,5.10058]
[1688417725412,8.92468598,1960.8,1960.5,10.20131]
[1688417727466,3.05878816,1960.8,1960.5,12.75167]
[1688417728720,0.5,1960.8,1960.5,18.11367]
[1688417732968,0.5,1960.8,1960.5,12.75167]
[1688417734927,0.5,1960.8,1960.5,18.11367]
[1688417735151,0.5,1960.8,1960.7,10.20042]
[1688417737777,0.5,1960.8,1960.7,12.75052]
[1688417740270,0.5,1960.8,1960.7,18.11252]
[1688417742902,0.5,1960.8,1960.7,27.33225787]
[1688417743074,0.5,1960.8,1960.7,30.81225787]
[1688417743270,0.5,1960.8,1960.7,34.37963936]
[1688417745501,3.5831,1961.6,1960.9,5.362]
[1688417745803,3.5831,1961.6,1961.1,21.95144]
[1688417746756,3.5831,1961.6,1961.2,1.298]
[1688417747108,1.7525,1961.6,1961.3,16.5938]
[1688417747306,0.5,1961.6,1961.3,17.49138]
[1688417751507,0.5,1961.6,1961.3,18.78938]
[1688417751932,0.5,1961.6,1961.3,17.49138]
[1688417752286,0.5,1961.6,1961.3,22.85338]
[1688417755506,0.5,1961.6,1961.3,25.41216816]
[1688417755694,0.5,1961.6,1961.5,6.66]
[1688417755887,0.5,1961.6,1961.5,27.53251]
[1688417756087,0.5,1961.6,1961.5,30.53251]
[1688417759956,1.6395,1962.1,1961.5,30.53251]
[1688417759957,1.6395,1962.1,1961.5,33.35903787]
[1688417760163,1.298,1962.4,1961.9,16.58772]
[1688417760164,1.6093,1962.3,1961.9,16.58772]
[1688417760320,1.6093,1962.3,1961.9,21.94972]
[1688417761562,2.1093,1962.3,1961.9,20.65272]
[1688417765136,2.1093,1962.3,1961.9,21.95072]
[1688417765526,2.1093,1962.3,1961.9,20.65272]
[1688417765721,2.1093,1962.3,1961.9,23.867475]
[1688417766771,2.1093,1962.3,1961.9,21.319025]
[1688417772852,0.5,1962.3,1961.9,22.612025]
[1688417773061,0.5,1962.3,1962.0,0.48]
[1688417773257,0.5,1962.3,1962.2,5.362]
[1688417773463,0.5,1962.3,1962.2,19.913145]
[1688417779897,0.5,1962.3,1962.0,5.09666]
[1688417780059,0.5,1962.3,1962.0,12.74177]
[1688417785434,0.5,1962.3,1962.0,18.10377]
[1688417786187,0.5,1962.3,1962.0,12.74177]
[1688417786390,1.298,1962.1,1961.9,5.50414258]
[1688417786602,13.25111816,1962.3,1961.9,10.60123258]
[1688417786791,1.296,1962.2,1961.9,10.60123258]
[1688417787210,0.5,1962.3,1961.9,13.14977258]
[1688417787411,2.2538,1962.3,1961.9,13.14977258]
[1688417787615,3.5488,1962.3,1961.9,18.51177258]
[1688417787922,3.5488,1962.3,1961.9,20.91781184]
[1688417788684,2.2538,1962.3,1961.9,20.91781184]
[1688417790275,16.30272816,1962.3,1961.9,0.40723258]
[1688417790458,1.298,1962.2,1961.9,0.40723258]
[1688417790770,6.39434,1962.2,1961.9,5.09704]
[1688417792174,6.39434,1962.2,1961.9,10.19413]
[1688417792964,11.49068,1962.2,1961.9,10.19413]
[1688417793473,6.89434,1962.2,1961.9,10.19413]
[1688417795489,1.798,1962.2,1961.9,10.19413]
[1688417795776,6.89439,1962.2,1961.9,10.19413]
[1688417796163,7.69176244,1962.2,1961.9,10.19413]
[1688417796360,6.39376244,1962.2,1961.9,10.19413]
[1688417798010,1.29737244,1962.2,1961.9,10.19413]
[1688417798379,6.39369244,1962.2,1961.9,10.19413]
[1688417799883,14.0488006,1962.2,1961.9,5.09704]